[Event "Czech Open-E Teams 2022"]
[Site "Pardubice"]
[Date "2022.07.16"]
[Round "5.9"]
[White "Polak, Tomas"]
[Black "Obsivac, Josef"]
[Result "1-0"]
[ECO "A04"]
[WhiteElo "2512"]
[BlackElo "2272"]
[Annotator "ChessBase"]
[PlyCount "63"]
[EventDate "2022.07.14"]
[EventType "team-tourn"]
[EventCountry "CZE"]
[SourceTitle "playchess.com"]
[Source "ChessBase"]
[SourceQuality "1"]
[TimeControl "5400+30"]

1. Nf3 {[%emt 0:00:24]} c5 {[%emt 0:01:27]} 2. c4 {[%emt 0:00:25]} Nf6 {[%emt 0:02:27]} 3. Nc3 {[%emt 0:00:12]} b6 {[%emt 0:01:32]} 4. e4 {[%emt 0:01:49]} d6 {[%emt 0:00:36]} 5. d4 {[%emt 0:00:43]} cxd4 {[%emt 0:00:10]} 6. Nxd4 {[%emt 0:00:05]} Bb7 {[%emt 0:00:42]} 7. f3 {[%emt 0:00:23]} e6 {[%emt 0:01:12]} 8. Be3 {[%emt 0:00:41]} Be7 {[%emt 0:00:21]} 9. Be2 {[%emt 0:01:49]} O-O {[%emt 0:00:46]} 10. O-O {[%emt 0:00:27]} a6 {[%emt 0:01:08]} 11. Qd2 {[%emt 0:00:19]} Nbd7 {[%emt 0:00:26]} 12. Rfd1 {[%emt 0:00:29]} Qb8 {[%emt 0:03:11]} 13. Rac1 {[%emt 0:04:19]} Bd8 {[%emt 0:03:14]} 14. Kh1 {[%emt 0:01:19]} Bc7 {[%emt 0:00:47]} 15. Bg1 {[%emt 0:00:59]} Kh8 {[%emt 0:01:25]} 16. b4 {[%emt 0:02:32]} Rg8 {[%emt 0:01:05]} 17. Nb3 {[%emt 0:05:53]} g5 {[%emt 0:03:59]} 18. c5 {[%emt 0:03:27]} dxc5 {[%emt 0:08:39]} 19. bxc5 bxc5 {[%emt 0:07:40]} 20. Na4 {[%emt 0:01:37]} Bf4 {[%emt 0:02:26]} 21. Qc3 {[%emt 0:01:22]} Ne5 {[%emt 0:03:40]} 22. Naxc5 {[%emt 0:05:29]} Rg6 {[%emt 0:09:42]} 23. Na5 {[%emt 0:12:28]} Rh6 {[%emt 0:29:08]} 24. h3 {[%emt 0:08:57]} Bc8 {[%emt 0:01:56]} 25. Rd8+ {[%emt 0:17:46]} Kg7 {[%emt 0:00:03]} 26. Nxa6 {[%emt 0:01:00]} Nh5 {[%emt 0:05:18]} 27. Bh2 {[%emt 0:03:26]} Bxh2 {[%emt 0:06:49]} 28. Nxb8 {[%emt 0:00:40]} Bf4 {[%emt 0:00:07]} 29. Qxc8 {[%emt 0:07:15]} Ng3+ {[%emt 0:00:44]} 30. Kg1 {[%emt 0:00:42]} Nxe2+ {[%emt 0:01:24]} 31. Kf2 {[%emt 0:00:24]} Rxb8 {[%emt 0:00:17]} 32. Qxb8 {[%emt 0:00:47]} 1-0

[Event "Czech Open-E Teams 2022"]
[Site "Pardubice"]
[Date "2022.07.16"]
[Round "5.10"]
[White "Zeman, Matyas"]
[Black "Nemec, Jachym"]
[Result "1/2-1/2"]
[ECO "D02"]
[WhiteElo "2262"]
[BlackElo "2357"]
[Annotator "ChessBase"]
[PlyCount "32"]
[EventDate "2022.07.14"]
[EventType "team-tourn"]
[EventCountry "CZE"]
[SourceTitle "playchess.com"]
[Source "ChessBase"]
[SourceQuality "1"]
[TimeControl "5400+30"]

1. d4 {[%emt 0:00:08]} d5 {[%emt 0:00:11]} 2. Nf3 {[%emt 0:00:14]} Nf6 {[%emt 0:00:13]} 3. Bf4 {[%emt 0:01:16]} e6 {[%emt 0:01:21]} 4. e3 {[%emt 0:00:12]} Bd6 {[%emt 0:00:05]} 5. Bg3 {[%emt 0:00:28]} O-O {[%emt 0:00:19]} 6. Nbd2 {[%emt 0:00:11]} c5 {[%emt 0:00:14]} 7. c3 {[%emt 0:00:10]} Qc7 {[%emt 0:03:16]} 8. dxc5 {[%emt 0:07:11]} Qxc5 {[%emt 0:02:11]} 9. Bd3 {[%emt 0:00:15]} Nbd7 {[%emt 0:02:08]} 10. O-O {[%emt 0:03:57]} Bxg3 {[%emt 0:01:11]} 11. hxg3 {[%emt 0:00:05]} Qb6 {[%emt 0:08:48]} 12. Qb3 {[%emt 0:03:13]} Qc7 {[%emt 0:00:48]} 13. Qc2 {[%emt 0:00:23]} b6 {[%emt 0:00:40]} 14. e4 {[%emt 0:22:03]} Bb7 {[%emt 0:00:30]} 15. exd5 {[%emt 0:02:41]} Bxd5 {[%emt 0:00:07]} 16. Ne4 {[%emt 0:00:14]} Rad8 {[%emt 0:01:52]} 1/2-1/2

[Event "Czech Open-E Teams 2022"]
[Site "Pardubice"]
[Date "2022.07.16"]
[Round "5.11"]
[White "Kusa, Jakub"]
[Black "Skacelik, Petr"]
[Result "1-0"]
[ECO "B31"]
[WhiteElo "2353"]
[BlackElo "2170"]
[Annotator "ChessBase"]
[PlyCount "59"]
[EventDate "2022.07.14"]
[EventType "team-tourn"]
[EventCountry "CZE"]
[SourceTitle "playchess.com"]
[Source "ChessBase"]
[SourceQuality "1"]
[TimeControl "5400+30"]

1. e4 {[%emt 0:00:08]} c5 {[%emt 0:00:03]} 2. Nf3 {[%emt 0:00:10]} Nc6 {[%emt 0:00:43]} 3. Bb5 {[%emt 0:00:09]} g6 {[%emt 0:00:30]} 4. Bxc6 {[%emt 0:00:36]} bxc6 {[%emt 0:00:09]} 5. O-O {[%emt 0:01:53]} Bg7 {[%emt 0:00:05]} 6. c3 {[%emt 0:02:22]} d6 {[%emt 0:00:34]} 7. h3 {[%emt 0:02:03]} Ba6 {[%emt 0:06:59]} 8. d3 {[%emt 0:01:40]} e5 {[%emt 0:00:20]} 9. Re1 {[%emt 0:02:01]} Ne7 {[%emt 0:00:34]} 10. Be3 {[%emt 0:01:53]} O-O {[%emt 0:00:24]} 11. d4 {[%emt 0:01:24]} cxd4 {[%emt 0:07:43]} 12. cxd4 {[%emt 0:00:31]} exd4 {[%emt 0:00:51]} 13. Bxd4 {[%emt 0:00:38]} Bxd4 {[%emt 0:01:31]} 14. Qxd4 {[%emt 0:01:35]} c5 {[%emt 0:04:47]} 15. Qd2 {[%emt 0:05:07]} Qb6 {[%emt 0:03:03]} 16. Nc3 {[%emt 0:01:16]} Rad8 {[%emt 0:05:10]} 17. Rad1 {[%emt 0:02:32]} Bb7 {[%emt 0:01:24]} 18. Qc2 {[%emt 0:01:38]} Bc6 {[%emt 0:05:16]} 19. Nd2 {[%emt 0:04:13]} d5 {[%emt 0:27:38]} 20. exd5 {[%emt 0:04:04]} Nxd5 {[%emt 0:01:56]} 21. Nc4 {[%emt 0:04:07]} Nb4 {[%emt 0:05:59]} 22. Qe2 {[%emt 0:07:20]} Qb8 {[%emt 0:09:51]} 23. a3 {[%emt 0:03:21]} Nd5 {[%emt 0:00:35]} 24. Nxd5 {[%emt 0:01:33]} Bxd5 {[%emt 0:03:36]} 25. Ne3 {[%emt 0:02:45]} Be6 {[%emt 0:00:40]} 26. Rc1 {[%emt 0:05:23]} Qb6 {[%emt 0:05:24]} 27. Rc2 {[%emt 0:05:34]} Rb8 {[%emt 0:00:40]} 28. Rec1 {[%emt 0:00:45]} Rfc8 {[%emt 0:00:13]} 29. Nc4 {[%emt 0:03:16]} Qa6 {[%emt 0:06:18]} 30. Qe5 {[%emt 0:02:30]} 1-0

[Event "Czech Open-E Teams 2022"]
[Site "Pardubice"]
[Date "2022.07.16"]
[Round "5.14"]
[White "Vyprachticky, David"]
[Black "Bartos, Jan"]
[Result "1/2-1/2"]
[ECO "C00"]
[WhiteElo "2302"]
[BlackElo "2142"]
[Annotator "ChessBase"]
[PlyCount "39"]
[EventDate "2022.07.14"]
[EventType "team-tourn"]
[EventCountry "CZE"]
[SourceTitle "playchess.com"]
[Source "ChessBase"]
[SourceQuality "1"]
[TimeControl "5400+30"]

1. e4 {[%emt 0:00:06]} e6 {[%emt 0:00:05]} 2. b3 {[%emt 0:00:35]} d5 {[%emt 0:02:34]} 3. Bb2 {[%emt 0:00:06]} a6 {[%emt 0:00:14]} 4. e5 {[%emt 0:06:47]} d4 {[%emt 0:00:47]} 5. c3 {[%emt 0:00:36]} c5 {[%emt 0:00:35]} 6. Nf3 {[%emt 0:01:13]} Nc6 {[%emt 0:00:13]} 7. Bd3 {[%emt 0:00:58]} Nge7 {[%emt 0:03:24]} 8. O-O {[%emt 0:01:14]} Ng6 {[%emt 0:00:55]} 9. Re1 {[%emt 0:01:55]} Qc7 {[%emt 0:03:02]} 10. cxd4 {[%emt 0:02:41]} cxd4 {[%emt 0:02:40]} 11. Bxg6 {[%emt 0:00:15]} hxg6 {[%emt 0:00:13]} 12. Nxd4 {[%emt 0:00:35]} Nxe5 {[%emt 0:02:58]} 13. Nxe6 {[%emt 0:06:16]} Nf3+ {[%emt 0:01:41]} 14. Qxf3 {[%emt 0:00:19]} Qxh2+ {[%emt 0:00:13]} 15. Kf1 {[%emt 0:00:04]} Bxe6 {[%emt 0:09:26]} 16. Qxb7 {[%emt 0:02:54]} Qh1+ {[%emt 0:02:50]} 17. Ke2 {[%emt 0:00:06]} Qh5+ {[%emt 0:00:06]} 18. Kf1 {[%emt 0:12:48]} Qh1+ {[%emt 0:00:06]} 19. Ke2 {[%emt 0:00:04]} Qh5+ {[%emt 0:00:03]} 20. Kf1 {[%emt 0:00:46]} 1/2-1/2

[Event "Czech Open-E Teams 2022"]
[Site "Pardubice"]
[Date "2022.07.16"]
[Round "5.15"]
[White "Pokorny, Petr"]
[Black "Oresky, Jan"]
[Result "1-0"]
[ECO "A46"]
[WhiteElo "2139"]
[BlackElo "2274"]
[Annotator "ChessBase"]
[PlyCount "123"]
[EventDate "2022.07.14"]
[EventType "team-tourn"]
[EventCountry "CZE"]
[SourceTitle "playchess.com"]
[Source "ChessBase"]
[SourceQuality "1"]
[TimeControl "5400+30"]

1. d4 {[%emt 0:00:08]} Nf6 {[%emt 0:00:06]} 2. Nf3 {[%emt 0:00:37]} e6 {[%emt 0:00:23]} 3. Bf4 {[%emt 0:02:14]} b6 {[%emt 0:01:23]} 4. Nbd2 {[%emt 0:01:15]} Bb7 {[%emt 0:00:56]} 5. e3 {[%emt 0:00:26]} c5 {[%emt 0:00:55]} 6. c3 {[%emt 0:03:27]} Be7 {[%emt 0:06:05]} 7. h3 {[%emt 0:00:15]} O-O {[%emt 0:00:30]} 8. Bd3 {[%emt 0:00:42]} cxd4 {[%emt 0:01:05]} 9. cxd4 {[%emt 0:02:34]} d6 {[%emt 0:04:09]} 10. O-O {[%emt 0:00:53]} Re8 {[%emt 0:04:18]} 11. Qe2 {[%emt 0:06:47]} Nbd7 {[%emt 0:01:55]} 12. e4 {[%emt 0:02:44]} a6 {[%emt 0:10:54]} 13. a4 {[%emt 0:03:00]} Nf8 {[%emt 0:02:16]} 14. Bh2 {[%emt 0:07:47]} Ng6 {[%emt 0:04:32]} 15. Rac1 {[%emt 0:02:49]} Bf8 {[%emt 0:01:43]} 16. Rfd1 {[%emt 0:05:12]} Nh5 {[%emt 0:08:56]} 17. Qe3 {[%emt 0:00:27]} f5 {[%emt 0:15:35]} 18. exf5 {[%emt 0:08:53]} exf5 {[%emt 0:00:18]} 19. Qg5 {[%emt 0:00:04]} Qxg5 {[%emt 0:01:59]} 20. Nxg5 {[%emt 0:00:08]} Nhf4 {[%emt 0:01:49]} 21. Bc4+ {[%emt 0:02:21]} d5 {[%emt 0:02:00]} 22. Bf1 {[%emt 0:00:08]} Bd6 {[%emt 0:03:39]} 23. Re1 {[%emt 0:02:43]} Rxe1 {[%emt 0:07:07]} 24. Rxe1 {[%emt 0:00:07]} Bb4 {[%emt 0:01:30]} 25. Ngf3 {[%emt 0:03:12]} Rc8 {[%emt 0:07:50]} 26. Bxf4 {[%emt 0:01:08]} Nxf4 {[%emt 0:00:03]} 27. g3 {[%emt 0:00:08]} Nh5 {[%emt 0:05:34]} 28. Re6 {[%emt 0:01:01]} Rc6 {[%emt 0:02:09]} 29. Rxc6 {[%emt 0:03:48]} Bxc6 {[%emt 0:00:01]} 30. Bxa6 {[%emt 0:00:07]} Bxa4 {[%emt 0:00:54]} 31. Bc8 {[%emt 0:00:06]} g6 {[%emt 0:01:54]} 32. Be6+ {[%emt 0:00:05]} Kf8 {[%emt 0:00:10]} 33. Bxd5 {[%emt 0:00:04]} Nf6 {[%emt 0:00:10]} 34. Bc4 {[%emt 0:02:03]} Bc6 {[%emt 0:01:14]} 35. Kf1 {[%emt 0:00:38]} Ke7 {[%emt 0:00:58]} 36. Ke2 {[%emt 0:00:31]} Kd6 {[%emt 0:00:49]} 37. Ne5 {[%emt 0:00:55]} Bg2 {[%emt 0:01:28]} 38. h4 {[%emt 0:00:21]} Bb7 {[%emt 0:00:34]} 39. Nd3 {[%emt 0:01:24]} Bxd2 {[%emt 0:00:45]} 40. Kxd2 {[%emt 0:00:04]} Bd5 {[%emt 0:00:56]} 41. Ne5 {[%emt 0:03:15]} Ne4+ {[%emt 0:00:39]} 42. Ke3 {[%emt 0:00:07]} Nf6 {[%emt 0:00:33]} 43. f3 {[%emt 0:03:22]} Nh5 {[%emt 0:00:35]} 44. g4 {[%emt 0:01:41]} fxg4 {[%emt 0:00:30]} 45. fxg4 {[%emt 0:00:10]} Nf6 {[%emt 0:00:09]} 46. Kf4 {[%emt 0:01:38]} Bxc4 {[%emt 0:00:26]} 47. Nxc4+ {[%emt 0:00:05]} Kd5 {[%emt 0:00:07]} 48. Nxb6+ {[%emt 0:00:15]} Kxd4 {[%emt 0:00:01]} 49. Kg5 {[%emt 0:00:36]} Ng8 {[%emt 0:01:52]} 50. Nd7 {[%emt 0:00:31]} h5 {[%emt 0:00:33]} 51. gxh5 {[%emt 0:01:06]} gxh5 {[%emt 0:00:02]} 52. Nb6 {[%emt 0:03:52]} Ne7 {[%emt 0:00:41]} 53. Kxh5 {[%emt 0:01:06]} Kc5 {[%emt 0:00:25]} 54. Na4+ {[%emt 0:00:59]} Kc4 {[%emt 0:00:48]} 55. Nc3 {[%emt 0:00:13]} Kb3 {[%emt 0:00:21]} 56. Nd1 {[%emt 0:00:05]} Kc2 {[%emt 0:00:05]} 57. Kg5 {[%emt 0:00:50]} Kxd1 {[%emt 0:00:28]} 58. h5 {[%emt 0:00:11]} Kc2 {[%emt 0:00:54]} 59. h6 {[%emt 0:00:51]} Nc6 {[%emt 0:00:43]} 60. h7 {[%emt 0:00:40]} Ne5 {[%emt 0:00:14]} 61. b4 {[%emt 0:00:41]} Kd3 {[%emt 0:00:34]} 62. b5 {[%emt 0:00:10]} 1-0

[Event "Czech Open-E Teams 2022"]
[Site "Pardubice"]
[Date "2022.07.16"]
[Round "5.16"]
[White "Cuhra, Martin"]
[Black "Lamser, Jan"]
[Result "1-0"]
[ECO "B00"]
[WhiteElo "2225"]
[BlackElo "2124"]
[Annotator "ChessBase"]
[PlyCount "47"]
[EventDate "2022.07.14"]
[EventType "team-tourn"]
[EventCountry "CZE"]
[SourceTitle "playchess.com"]
[Source "ChessBase"]
[SourceQuality "1"]
[TimeControl "5400+30"]

1. e4 d6 2. d4 Nf6 3. f3 Nbd7 4. c4 e5 5. d5 Be7 6. Nc3 c6 7. Be3 a6 8. Nge2 cxd5 9. cxd5 Nh5 10. Qd2 h6 11. O-O-O Bg5 12. g4 Bxe3 13. Qxe3 Nhf6 14. Ng3 g6 15. h4 h5 16. Be2 Nc5 17. Rdg1 b5 18. gxh5 Nxh5 19. Nxh5 gxh5 20. Kb1 b4 21. Nd1 Qf6 22. Rg5 Bd7 23. Nf2 Qh6 24. Rg8+ 1-0

[Event "Czech Open-E Teams 2022"]
[Site "Pardubice"]
[Date "2022.07.16"]
[Round "5.17"]
[White "Eret, Matous"]
[Black "Sramek, Vojtech"]
[Result "0-1"]
[ECO "B50"]
[WhiteElo "2273"]
[BlackElo "2249"]
[Annotator "ChessBase"]
[PlyCount "62"]
[EventDate "2022.07.14"]
[EventType "team-tourn"]
[EventCountry "CZE"]
[SourceTitle "playchess.com"]
[Source "ChessBase"]
[SourceQuality "1"]
[TimeControl "5400+30"]

1. e4 c5 2. Nf3 d6 3. d3 Nc6 4. Nbd2 g6 5. g3 Bg7 6. Bg2 e5 7. c3 Nge7 8. O-O O-O 9. a4 h6 10. Nc4 Be6 11. Re1 Qd7 12. Rb1 f5 13. exf5 Rxf5 14. Ne3 Rf7 15. b4 cxb4 16. cxb4 Raf8 17. Rf1 Bh3 18. Nd2 Nd4 19. Bb2 Bxg2 20. Kxg2 Ndf5 21. Nxf5 Rxf5 22. b5 Kh7 23. Nc4 Nd5 24. h4 h5 25. d4 e4 26. Qe2 Rf4 27. Kh2 Rxh4+ 28. gxh4 Rf3 29. Qxf3 exf3 30. Rg1 Qe7 31. Kg3 Qe4 0-1

[Event "Czech Open-E Teams 2022"]
[Site "Pardubice"]
[Date "2022.07.16"]
[Round "5.18"]
[White "Lojek, Marek"]
[Black "Eret, Jonas"]
[Result "1/2-1/2"]
[ECO "B07"]
[WhiteElo "2142"]
[BlackElo "2219"]
[Annotator "ChessBase"]
[PlyCount "26"]
[EventDate "2022.07.14"]
[EventType "team-tourn"]
[EventCountry "CZE"]
[SourceTitle "playchess.com"]
[Source "ChessBase"]
[SourceQuality "1"]
[TimeControl "5400+30"]

1. e4 {[%emt 0:00:03]} d6 {[%emt 0:00:15]} 2. d4 {[%emt 0:00:19]} Nf6 {[%emt 0:00:08]} 3. Nc3 {[%emt 0:00:39]} e5 {[%emt 0:01:10]} 4. dxe5 {[%emt 0:02:32]} dxe5 {[%emt 0:00:06]} 5. Qxd8+ {[%emt 0:00:05]} Kxd8 {[%emt 0:00:03]} 6. Bc4 {[%emt 0:01:23]} Be6 {[%emt 0:00:06]} 7. Bxe6 {[%emt 0:01:07]} fxe6 {[%emt 0:00:05]} 8. Nf3 {[%emt 0:02:05]} Bd6 {[%emt 0:00:13]} 9. h3 {[%emt 0:01:39]} Nc6 {[%emt 0:01:40]} 10. Be3 {[%emt 0:00:22]} a6 {[%emt 0:00:51]} 11. O-O-O {[%emt 0:00:46]} Ke7 {[%emt 0:01:08]} 12. Nd2 {[%emt 0:04:45]} b5 {[%emt 0:03:49]} 13. Ne2 {[%emt 0:03:17]} Rhf8 {[%emt 0:06:26]} 1/2-1/2

[Event "Czech Open-E Teams 2022"]
[Site "Pardubice"]
[Date "2022.07.16"]
[Round "5.19"]
[White "Simet, Martin"]
[Black "Husek, Martin"]
[Result "0-1"]
[ECO "A01"]
[WhiteElo "2155"]
[BlackElo "2132"]
[Annotator "ChessBase"]
[PlyCount "74"]
[EventDate "2022.07.14"]
[EventType "team-tourn"]
[EventCountry "CZE"]
[SourceTitle "playchess.com"]
[Source "ChessBase"]
[SourceQuality "1"]
[TimeControl "5400+30"]

1. b3 {[%emt 0:00:06]} e5 {[%emt 0:00:55]} 2. Bb2 {[%emt 0:00:02]} Nc6 {[%emt 0:00:38]} 3. e3 {[%emt 0:00:07]} Nf6 {[%emt 0:00:34]} 4. Bb5 {[%emt 0:00:26]} Bd6 {[%emt 0:00:27]} 5. Na3 {[%emt 0:03:34]} Na5 {[%emt 0:00:29]} 6. Be2 {[%emt 0:03:32]} a6 {[%emt 0:00:22]} 7. c4 {[%emt 0:01:04]} Be7 {[%emt 0:02:44]} 8. Nc2 {[%emt 0:02:30]} Nc6 {[%emt 0:02:35]} 9. d4 {[%emt 0:01:48]} exd4 {[%emt 0:00:12]} 10. exd4 {[%emt 0:00:08]} d5 {[%emt 0:00:13]} 11. Nf3 {[%emt 0:00:51]} O-O {[%emt 0:00:12]} 12. O-O {[%emt 0:00:20]} Be6 {[%emt 0:05:33]} 13. Ne3 {[%emt 0:04:54]} h6 {[%emt 0:00:32]} 14. Rc1 {[%emt 0:01:31]} Qe8 {[%emt 0:10:34]} 15. Qc2 {[%emt 0:03:09]} Rd8 {[%emt 0:00:33]} 16. Rfe1 {[%emt 0:02:12]} Nb8 {[%emt 0:06:41]} 17. Nf5 {[%emt 0:05:52]} Bb4 {[%emt 0:01:06]} 18. Bd3 {[%emt 0:04:41]} Bxe1 {[%emt 0:05:48]} 19. Rxe1 {[%emt 0:03:47]} Nc6 {[%emt 0:21:04]} 20. Ba3 {[%emt 0:02:25]} Qd7 {[%emt 0:01:04]} 21. Ne5 {[%emt 0:04:41]} Nxe5 {[%emt 0:02:00]} 22. dxe5 {[%emt 0:05:14]} dxc4 {[%emt 0:05:55]} 23. Ne7+ {[%emt 0:01:06]} Kh8 {[%emt 0:00:44]} 24. exf6 {[%emt 0:01:37]} Qxd3 {[%emt 0:03:36]} 25. Qc1 {[%emt 0:02:15]} c3 {[%emt 0:08:28]} 26. Bb4 {[%emt 0:00:19]} c2 {[%emt 0:02:45]} 27. Qb2 {[%emt 0:04:56]} g6 {[%emt 0:01:27]} 28. h4 {[%emt 0:01:00]} h5 {[%emt 0:03:03]} 29. Qc1 {[%emt 0:01:24]} Kh7 {[%emt 0:00:48]} 30. Qg5 {[%emt 0:01:25]} Qd1 {[%emt 0:01:57]} 31. Kh2 {[%emt 0:02:35]} Qg4 {[%emt 0:02:55]} 32. Qc5 {[%emt 0:00:46]} b6 {[%emt 0:02:35]} 33. Qc3 {[%emt 0:01:30]} Qf4+ {[%emt 0:01:35]} 34. Kg1 {[%emt 0:00:31]} c5 {[%emt 0:01:15]} 35. Ba3 {[%emt 0:00:08]} Qd2 {[%emt 0:01:01]} 36. Qa1 {[%emt 0:00:26]} Qxe1+ {[%emt 0:00:13]} 37. Qxe1 {[%emt 0:00:06]} Rd1 {[%emt 0:00:07]} 0-1

[Event "Czech Open-E Teams 2022"]
[Site "Pardubice"]
[Date "2022.07.16"]
[Round "5.20"]
[White "Walica, Roman"]
[Black "Rut, Vojtech"]
[Result "0-1"]
[ECO "B12"]
[WhiteElo "2123"]
[BlackElo "2080"]
[Annotator "ChessBase"]
[PlyCount "54"]
[EventDate "2022.07.14"]
[EventType "team-tourn"]
[EventCountry "CZE"]
[SourceTitle "playchess.com"]
[Source "ChessBase"]
[SourceQuality "1"]
[TimeControl "5400+30"]

1. e4 {[%emt 0:00:03]} c6 {[%emt 0:00:27]} 2. d4 {[%emt 0:00:04]} d5 {[%emt 0:00:01]} 3. e5 {[%emt 0:00:05]} Bf5 {[%emt 0:00:27]} 4. h4 {[%emt 0:00:07]} h6 {[%emt 0:02:54]} 5. Bd3 {[%emt 0:01:39]} Bxd3 {[%emt 0:01:14]} 6. Qxd3 {[%emt 0:00:07]} Qa5+ {[%emt 0:01:23]} 7. Nd2 {[%emt 0:01:05]} Qa6 {[%emt 0:00:11]} 8. c4 {[%emt 0:05:54]} e6 {[%emt 0:00:47]} 9. Ngf3 {[%emt 0:02:10]} Ne7 {[%emt 0:02:19]} 10. O-O {[%emt 0:00:54]} Nd7 {[%emt 0:00:31]} 11. b3 {[%emt 0:02:00]} Nf5 {[%emt 0:16:38]} 12. Bb2 {[%emt 0:02:16]} g5 {[%emt 0:06:27]} 13. hxg5 {[%emt 0:14:58]} hxg5 {[%emt 0:00:19]} 14. Nxg5 {[%emt 0:00:28]} Be7 {[%emt 0:00:46]} 15. f4 {[%emt 0:00:25]} c5 {[%emt 0:03:14]} 16. Ndf3 {[%emt 0:11:24]} Nb6 {[%emt 0:04:24]} 17. Rfc1 {[%emt 0:12:01]} dxc4 {[%emt 0:03:11]} 18. bxc4 {[%emt 0:00:25]} cxd4 {[%emt 0:00:24]} 19. g4 {[%emt 0:03:02]} Ne3 {[%emt 0:03:24]} 20. Nxd4 {[%emt 0:05:10]} Bxg5 {[%emt 0:24:35]} 21. Qxe3 {[%emt 0:09:55]} Be7 {[%emt 0:01:20]} 22. Nb5 {[%emt 0:07:53]} O-O-O {[%emt 0:00:53]} 23. a4 {[%emt 0:05:21]} Rh4 {[%emt 0:02:40]} 24. c5 {[%emt 0:11:02]} Rxg4+ {[%emt 0:01:06]} 25. Kf2 {[%emt 0:00:06]} Nd5 {[%emt 0:02:25]} 26. Nd6+ {[%emt 0:02:15]} Kb8 {[%emt 0:00:39]} 27. c6 {[%emt 0:00:33]} Bh4+ {[%emt 0:00:53]} 0-1

[Event "Czech Open-E Teams 2022"]
[Site "Pardubice"]
[Date "2022.07.16"]
[Round "5.21"]
[White "Vojta, Jakub"]
[Black "Marsalek, Zdenek"]
[Result "1/2-1/2"]
[ECO "C41"]
[WhiteElo "2326"]
[BlackElo "2195"]
[Annotator "ChessBase"]
[PlyCount "72"]
[EventDate "2022.07.14"]
[EventType "team-tourn"]
[EventCountry "CZE"]
[SourceTitle "playchess.com"]
[Source "ChessBase"]
[SourceQuality "1"]
[TimeControl "5400+30"]

1. e4 {[%emt 0:00:02]} d6 {[%emt 0:00:07]} 2. d4 {[%emt 0:00:04]} Nf6 {[%emt 0:00:07]} 3. Nc3 {[%emt 0:00:05]} e5 {[%emt 0:00:09]} 4. Nf3 {[%emt 0:00:05]} Nbd7 {[%emt 0:00:23]} 5. g4 {[%emt 0:00:07]} g6 {[%emt 0:01:19]} 6. h3 {[%emt 0:00:16]} Bg7 {[%emt 0:00:39]} 7. Be3 {[%emt 0:01:18]} O-O {[%emt 0:03:23]} 8. Qd2 {[%emt 0:07:54]} Qe7 {[%emt 0:03:24]} 9. Bg2 {[%emt 0:19:39]} c6 {[%emt 0:03:34]} 10. g5 {[%emt 0:00:06]} Nh5 {[%emt 0:00:13]} 11. O-O-O {[%emt 0:03:10]} Nb6 {[%emt 0:02:54]} 12. Qe2 {[%emt 0:05:41]} Be6 {[%emt 0:02:17]} 13. d5 {[%emt 0:04:18]} cxd5 {[%emt 0:01:49]} 14. Nxd5 {[%emt 0:00:33]} Nxd5 {[%emt 0:01:05]} 15. exd5 {[%emt 0:00:07]} Bd7 {[%emt 0:01:50]} 16. Nd2 {[%emt 0:01:25]} Rfe8 {[%emt 0:00:20]} 17. Bf3 {[%emt 0:12:35]} Bf5 {[%emt 0:07:40]} 18. Bxh5 {[%emt 0:04:03]} Rac8 {[%emt 0:01:37]} 19. c3 {[%emt 0:01:26]} gxh5 {[%emt 0:00:15]} 20. f3 {[%emt 0:00:31]} Qd7 {[%emt 0:00:35]} 21. Ne4 {[%emt 0:07:18]} Bg6 {[%emt 0:09:25]} 22. b3 {[%emt 0:08:47]} Bxe4 {[%emt 0:07:29]} 23. fxe4 {[%emt 0:00:45]} Rxc3+ {[%emt 0:00:14]} 24. Kb2 {[%emt 0:01:09]} Rec8 {[%emt 0:00:09]} 25. Rc1 {[%emt 0:00:53]} Rxc1 {[%emt 0:02:47]} 26. Bxc1 {[%emt 0:00:02]} Qc7 {[%emt 0:03:07]} 27. Qd3 {[%emt 0:00:44]} a6 {[%emt 0:01:12]} 28. Be3 {[%emt 0:01:14]} Qd7 {[%emt 0:00:28]} 29. Qe2 {[%emt 0:03:44]} Bf8 {[%emt 0:03:47]} 30. Qxh5 {[%emt 0:01:58]} Qb5 {[%emt 0:00:14]} 31. Qd1 {[%emt 0:00:44]} Be7 {[%emt 0:02:05]} 32. h4 {[%emt 0:02:48]} Bd8 {[%emt 0:01:33]} 33. Rh2 {[%emt 0:02:23]} Bb6 {[%emt 0:00:40]} 34. Bxb6 {[%emt 0:00:56]} Qxb6 {[%emt 0:00:10]} 35. Rc2 {[%emt 0:02:55]} Rxc2+ {[%emt 0:06:23]} 36. Qxc2 {[%emt 0:00:11]} Qd4+ {[%emt 0:00:39]} 1/2-1/2

[Event "Czech Open-E Teams 2022"]
[Site "Pardubice"]
[Date "2022.07.16"]
[Round "5.22"]
[White "Duran, Tomas"]
[Black "Virostko, Petr"]
[Result "1/2-1/2"]
[ECO "B40"]
[WhiteElo "2108"]
[BlackElo "2326"]
[Annotator "ChessBase"]
[PlyCount "84"]
[EventDate "2022.07.14"]
[EventType "team-tourn"]
[EventCountry "CZE"]
[SourceTitle "playchess.com"]
[Source "ChessBase"]
[SourceQuality "1"]
[TimeControl "5400+30"]

1. e4 {[%emt 0:00:07]} c5 {[%emt 0:00:07]} 2. Nf3 {[%emt 0:00:16]} e6 {[%emt 0:00:05]} 3. c3 {[%emt 0:00:44]} d5 {[%emt 0:00:23]} 4. exd5 {[%emt 0:00:14]} exd5 {[%emt 0:00:11]} 5. d4 {[%emt 0:00:06]} Nc6 {[%emt 0:00:12]} 6. Be2 {[%emt 0:01:23]} Bd6 {[%emt 0:03:57]} 7. O-O {[%emt 0:02:55]} Nge7 {[%emt 0:00:59]} 8. dxc5 {[%emt 0:05:36]} Bxc5 {[%emt 0:00:22]} 9. Nbd2 {[%emt 0:00:03]} O-O {[%emt 0:01:03]} 10. Nb3 {[%emt 0:00:09]} Bb6 {[%emt 0:00:31]} 11. Nbd4 {[%emt 0:01:16]} Bg4 {[%emt 0:11:22]} 12. Be3 {[%emt 0:09:20]} Re8 {[%emt 0:04:51]} 13. Re1 {[%emt 0:04:36]} Ng6 {[%emt 0:06:18]} 14. h3 {[%emt 0:06:22]} Bxf3 {[%emt 0:10:40]} 15. Bxf3 {[%emt 0:01:13]} Nh4 {[%emt 0:01:45]} 16. Nc2 {[%emt 0:24:18]} Nxf3+ {[%emt 0:05:46]} 17. Qxf3 {[%emt 0:01:08]} Ne5 {[%emt 0:05:58]} 18. Qg3 {[%emt 0:02:52]} Nc4 {[%emt 0:02:37]} 19. Bg5 {[%emt 0:07:25]} Rxe1+ {[%emt 0:09:53]} 20. Rxe1 {[%emt 0:00:02]} f6 {[%emt 0:00:16]} 21. Bc1 {[%emt 0:02:51]} Qd7 22. b3 {[%emt 0:11:05]} Nd6 {[%emt 0:06:23]} 23. Qd3 {[%emt 0:00:40]} Qf5 {[%emt 0:03:38]} 24. Qxf5 {[%emt 0:06:17]} Nxf5 {[%emt 0:00:05]} 25. Ne3 {[%emt 0:00:38]} Re8 {[%emt 0:03:27]} 26. Kf1 {[%emt 0:00:37]} Nxe3+ {[%emt 0:01:24]} 27. Bxe3 {[%emt 0:00:08]} Bxe3 {[%emt 0:00:21]} 28. fxe3 {[%emt 0:02:07]} Rc8 {[%emt 0:03:17]} 29. Rc1 {[%emt 0:00:35]} Kf7 {[%emt 0:00:26]} 30. Ke2 {[%emt 0:01:12]} Ke6 {[%emt 0:00:13]} 31. Kd3 {[%emt 0:00:36]} Ke5 {[%emt 0:00:34]} 32. Rf1 {[%emt 0:02:03]} Rc6 {[%emt 0:05:24]} 33. Rf4 {[%emt 0:02:13]} Rc7 {[%emt 0:04:31]} 34. Rd4 {[%emt 0:01:17]} f5 {[%emt 0:02:20]} 35. Rh4 {[%emt 0:01:08]} g6 {[%emt 0:00:37]} 36. Rb4 {[%emt 0:00:20]} g5 {[%emt 0:02:19]} 37. h4 {[%emt 0:02:14]} h6 {[%emt 0:00:42]} 38. a4 {[%emt 0:00:53]} f4 {[%emt 0:02:06]} 39. hxg5 {[%emt 0:00:43]} hxg5 {[%emt 0:00:12]} 40. exf4+ {[%emt 0:00:14]} gxf4 {[%emt 0:00:06]} 41. g3 {[%emt 0:00:03]} fxg3 {[%emt 0:01:21]} 42. Rg4 {[%emt 0:00:02]} Rh7 {[%emt 0:00:33]} 1/2-1/2